lending/lending_fUSD_20240710
["ID","MTS","AMOUNT","RATE_DAILY","PERIOD"]
[331612921,1720582234202,-500.0,0.00013698,2]
[331612922,1720582234212,-500.0,0.00013698,2]
[331612923,1720582234223,-500.0,0.00013698,2]
[331612924,1720582234233,-1371.54,0.00013698,2]
[331612925,1720582234243,-1456.25,0.00013698,2]
[331612926,1720582234253,-1862.82,0.00013698,2]
[331612927,1720582234263,-500.0,0.00013698,2]
[331612928,1720582234273,-500.0,0.00013698,2]
[331612929,1720582234283,-1670.58,0.00013698,2]
[331612930,1720582234292,-500.0,0.00013698,2]
[331612931,1720582234302,-500.0,0.00013698,2]
[331612932,1720582234312,-627.06,0.00013698,2]
[331612933,1720582234323,-500.0,0.00013698,2]
[331612934,1720582234332,-500.0,0.00013698,2]
[331612935,1720582234344,-870.64,0.00013698,2]
[331612936,1720582234354,-500.0,0.00013698,2]
[331612937,1720582234363,-500.0,0.00013698,2]
[331612938,1720582234373,-500.0,0.00013698,2]
[331612939,1720582234385,-500.0,0.00013698,2]
[331612940,1720582234395,-678.12,0.00013698,2]
[331612941,1720582234404,-767.53,0.00013698,2]
[331612942,1720582234413,-500.0,0.00013698,2]
[331612943,1720582234423,-672.43,0.00013698,2]
[331612944,1720582234434,-673.75,0.00013698,2]
[331612945,1720582234444,-3010.5,0.00013698,2]
[331612946,1720582234453,-1089.38,0.00013698,2]
[331612947,1720582234464,-500.0,0.00013698,2]
[331612948,1720582234474,-500.0,0.00013698,2]
[331612949,1720582234484,-1167.02,0.00013698,2]
[331612950,1720582234494,-500.0,0.00013698,2]
[331612951,1720582234504,-500.0,0.00013698,2]
[331612952,1720582234514,-784.09,0.00013698,2]
[331612953,1720582234524,-500.0,0.00013698,2]
[331612954,1720582234534,-500.0,0.00013698,2]
[331612955,1720582234544,-913.87,0.00013698,2]
[331612956,1720582234554,-500.0,0.00013698,2]
[331612957,1720582234564,-500.0,0.00013698,2]
[331612958,1720582234574,-1105.86,0.00013698,2]
[331612959,1720582234584,-992.12,0.00013698,2]
[331612960,1720582234595,-500.0,0.00013698,2]
[331612961,1720582234608,-500.0,0.00013698,2]
[331612962,1720582234618,-556.4,0.00013698,2]
[331612963,1720582234628,-500.0,0.00013698,2]
[331612964,1720582234639,-500.0,0.00013698,2]
[331612965,1720582234648,-500.0,0.00013698,2]
[331612966,1720582234658,-500.0,0.00013698,2]
[331612967,1720582234667,-763.0,0.00013698,2]
[331612968,1720582234677,-554.34,0.00013698,2]
[331612969,1720582234687,-500.0,0.00013698,2]
[331612970,1720582234698,-875.27,0.00013698,2]
[331612971,1720582234708,-1396.73,0.00013698,2]
[331612972,1720582234718,-2318.64,0.00013698,2]
[331612973,1720582234728,-500.0,0.00013698,2]
[331612974,1720582234738,-500.0,0.00013698,2]
[331612975,1720582234748,-500.0,0.00013698,2]
[331612976,1720582234758,-500.0,0.00013698,2]
[331612977,1720582234768,-500.0,0.00013698,2]
[331612978,1720582234779,-1277.49,0.00013698,2]
[331612979,1720582234789,-500.0,0.00013698,2]
[331612980,1720582234799,-500.0,0.00013698,2]
[331612981,1720582234810,-500.0,0.00013698,2]
[331612982,1720582234821,-500.0,0.00013698,2]
[331612983,1720582234831,-500.0,0.00013698,2]
[331612984,1720582234842,-500.0,0.00013698,2]
[331612985,1720582234852,-500.0,0.00013698,2]
[331612986,1720582234862,-186.25859512,0.00013698,2]
[331612987,1720582234872,-500.0,0.00013698,2]
[331612988,1720582234883,-508.14,0.00013698,2]
[331612989,1720582234892,-500.0,0.00013698,2]
[331612990,1720582234902,-500.0,0.00013698,2]
[331612991,1720582234911,-1243.31,0.00013698,2]
[331612992,1720582234922,-1700.34,0.00013698,2]
[331612993,1720582234931,-631.88,0.00013698,2]
[331612994,1720582234941,-325.76786582,0.00013698,2]
[331613000,1720582238845,-343.85707999,0.00012241,2]
[331613001,1720582238857,-956.14292001,0.00012241,2]
[331613002,1720582238867,-190.10192611,0.00013688,2]
[331613003,1720582238877,-174.23213418,0.00013698,2]
[331613004,1720582238896,-500.0,0.00013698,2]
[331613005,1720582238906,-519.11,0.00013698,2]
[331613006,1720582238916,-838.85,0.00013698,2]
[331613007,1720582238926,-2500.0,0.00013698,3]
[331613008,1720582238936,-500.0,0.00013698,2]
[331613009,1720582238945,-500.0,0.00013698,2]
[331613010,1720582238955,-500.0,0.00013698,2]
[331613011,1720582238965,-500.0,0.00013698,2]
[331613012,1720582238974,-749.55,0.00013698,2]
[331613013,1720582238984,-827.99,0.00013698,2]
[331613014,1720582238994,-1032.14,0.00013698,2]
[331613015,1720582239003,-500.0,0.00013698,2]
[331613016,1720582239013,-474.53742512,0.00013698,2]
[331613043,1720582242358,-1300.0,0.00013063,2]
[331613044,1720582242368,-25.46257488,0.00013698,2]
[331613045,1720582242379,-500.0,0.00013698,2]
[331613046,1720582242390,-500.0,0.00013698,2]
[331613047,1720582242400,-843.69,0.00013698,2]
[331613048,1720582242410,-1510.39,0.00013698,2]
[331613049,1720582242420,-500.0,0.00013698,2]
[331613050,1720582242430,-950.53,0.00013698,2]
[331613051,1720582242440,-500.0,0.00013698,2]
[331613052,1720582242450,-500.0,0.00013698,2]
[331613053,1720582242460,-500.0,0.00013698,2]
[331613054,1720582242470,-500.0,0.00013698,2]
[331613055,1720582242480,-500.0,0.00013698,2]
[331613056,1720582242490,-866.69,0.00013698,2]
[331613057,1720582242499,-500.0,0.00013698,2]
[331613058,1720582242509,-1889.21,0.00013698,2]
[331613059,1720582242520,-692.44,0.00013698,2]
[331613060,1720582242530,-500.0,0.00013698,2]
[331613061,1720582242539,-500.0,0.00013698,2]
[331613062,1720582242548,-500.0,0.00013698,2]
[331613063,1720582242558,-500.0,0.00013698,2]
[331613064,1720582242568,-500.0,0.00013698,2]
[331613065,1720582242577,-500.0,0.00013698,2]
[331613066,1720582242587,-617.57,0.00013698,2]
[331613067,1720582242596,-837.08,0.00013698,2]
[331613068,1720582242606,-666.29,0.00013698,2]
[331613069,1720582242615,-500.0,0.00013698,2]
[331613070,1720582242625,-500.0,0.00013698,2]
[331613071,1720582242635,-978.35,0.00013698,2]
[331613072,1720582242645,-515.49664113,0.00013698,2]
[331613073,1720582242654,-500.0,0.00013698,2]
[331613074,1720582242663,-500.0,0.00013698,2]
[331613075,1720582242672,-500.0,0.00013698,2]
[331613076,1720582242682,-500.0,0.00013698,2]
[331613077,1720582242691,-960.97,0.00013698,2]
[331613078,1720582242700,-897.05,0.00013698,2]
[331613079,1720582242710,-500.0,0.00013698,2]
[331613080,1720582242719,-726.09,0.00013698,2]
[331613081,1720582242728,-889.83,0.00013698,2]
[331613082,1720582242737,-820.21,0.00013698,2]
[331613083,1720582242746,-500.0,0.00013698,2]
[331613084,1720582242756,-500.0,0.00013698,2]
[331613085,1720582242765,-904.64,0.00013698,2]
[331613086,1720582242774,-500.0,0.00013698,2]
[331613087,1720582242784,-500.0,0.00013698,2]
[331613088,1720582242793,-500.0,0.00013698,2]
[331613089,1720582242802,-204.47808667,0.00013698,2]
[331613090,1720582242817,-788.25191333,0.00013698,2]
[331613092,1720582242827,-704.5,0.00013698,2]
[331613094,1720582242836,-500.0,0.00013698,2]
[331613096,1720582242845,-869.04,0.00013698,2]
[331613097,1720582242855,-844.11,0.00013698,2]
[331613098,1720582242864,-892.93,0.00013698,2]
[331613099,1720582242874,-996.92,0.00013698,2]
[331613100,1720582242883,-691.87,0.00013698,2]
[331613101,1720582242894,-235.62484694,0.00013698,2]
[331613102,1720582243071,-539.29698236,0.00013698,2]
[331613103,1720582243084,-527.3081707,0.00013698,2]
[331613104,1720582243094,-500.0,0.00013698,2]
[331613105,1720582243104,-646.26,0.00013698,2]
[331613106,1720582243115,-500.0,0.00013698,2]
[331613107,1720582243125,-500.0,0.00013698,2]
[331613108,1720582243135,-500.0,0.00013698,2]
[331613109,1720582243144,-716.54,0.00013698,2]
[331613110,1720582243155,-2168.09,0.00013698,2]
[331613111,1720582243165,-1289.08,0.00013698,2]
[331613112,1720582243177,-500.0,0.00013698,2]
[331613113,1720582243187,-523.18,0.00013698,2]
[331613114,1720582243198,-2168.89,0.00013698,2]
[331613115,1720582243208,-1042.52,0.00013698,2]
[331613116,1720582243217,-775.24,0.00013698,2]
[331613117,1720582243227,-1086.85,0.00013698,2]
[331613118,1720582243236,-500.0,0.00013698,2]
[331613119,1720582243246,-500.0,0.00013698,2]
[331613120,1720582243256,-500.0,0.00013698,2]
[331613121,1720582243265,-514.32,0.00013698,2]
[331613122,1720582243275,-1913.13,0.00013698,2]
[331613124,1720582243285,-319.23790501,0.00013698,2]
[331613126,1720582243294,-500.0,0.00013698,2]
[331613127,1720582243304,-500.0,0.00013698,2]
[331613128,1720582243314,-500.0,0.00013698,2]
[331613129,1720582243323,-500.0,0.00013698,2]
[331613130,1720582243332,-891.01,0.00013698,2]
[331613131,1720582243343,-887.88,0.00013698,2]
[331613132,1720582243352,-500.0,0.00013698,2]
[331613133,1720582243361,-500.0,0.00013698,2]
[331613134,1720582243371,-500.0,0.00013698,2]
[331613136,1720582243380,-500.0,0.00013698,2]
[331613137,1720582243391,-500.0,0.00013698,2]
[331613139,1720582243401,-936.3,0.00013698,2]
[331613140,1720582243411,-500.0,0.00013698,2]
[331613142,1720582243421,-500.0,0.00013698,2]
[331613143,1720582243430,-1384.89,0.00013698,2]
[331613144,1720582243439,-500.0,0.00013698,2]
[331613145,1720582243448,-2247.87,0.00013698,2]
[331613146,1720582243458,-1420.38,0.00013698,2]
[331613147,1720582243468,-571.25,0.00013698,2]
[331613148,1720582243478,-500.0,0.00013698,2]
[331613149,1720582243487,-500.0,0.00013698,2]
[331613150,1720582243496,-500.0,0.00013698,2]
[331613151,1720582243507,-553.6,0.00013698,2]
[331613152,1720582243516,-533.1,0.00013698,2]
[331613155,1720582243525,-4094.41,0.00013698,2]
[331613158,1720582243534,-500.0,0.00013698,2]
[331613161,1720582243543,-2004.94,0.00013698,2]
[331613163,1720582243553,-500.0,0.00013698,2]
[331613165,1720582243563,-1023.63,0.00013698,2]
[331613167,1720582243574,-695.9,0.00013698,2]
[331613169,1720582243584,-500.0,0.00013698,2]
[331613171,1720582243594,-868.29,0.00013698,2]
[331613173,1720582243605,-590.06,0.00013698,2]
[331613175,1720582243615,-2154.39,0.00013698,2]
[331613177,1720582243626,-500.0,0.00013698,2]
[331613179,1720582243637,-755.12,0.00013698,2]
[331613181,1720582243647,-1000.0,0.00013698,2]
[331613183,1720582243657,-694.47,0.00013698,2]
[331613184,1720582243667,-500.0,0.00013698,2]
[331613185,1720582243676,-1080.48198083,0.00013698,2]
[331613186,1720582243686,-2830.58,0.00013698,2]
[331613187,1720582243696,-3520.15,0.00013698,2]
[331613188,1720582243705,-500.0,0.00013698,2]
[331613189,1720582243715,-500.0,0.00013698,2]
[331613190,1720582243725,-1685.97,0.00013698,2]
[331613191,1720582243735,-1089.17,0.00013698,2]
[331613192,1720582243744,-500.0,0.00013698,2]
[331613193,1720582243754,-500.0,0.00013698,2]
[331613194,1720582243764,-596.31,0.00013698,2]
[331613195,1720582243774,-2858.82,0.00013698,2]
[331613196,1720582243783,-500.0,0.00013698,2]
[331613197,1720582243792,-500.0,0.00013698,2]
[331613198,1720582243802,-500.0,0.00013698,2]
[331613199,1720582243812,-500.0,0.00013698,2]
[331613200,1720582243822,-500.0,0.00013698,2]
[331613201,1720582243832,-500.0,0.00013698,2]
[331613202,1720582243842,-748.64,0.00013698,2]
[331613203,1720582243851,-500.0,0.00013698,2]
[331613204,1720582243861,-500.0,0.00013698,2]
[331613205,1720582243870,-819.52,0.00013698,2]
[331613206,1720582243880,-712.2,0.00013698,2]
[331613207,1720582243891,-1013.81,0.00013698,2]
[331613208,1720582243901,-520.5,0.00013698,2]
[331613209,1720582243911,-500.0,0.00013698,2]
[331613210,1720582243921,-500.0,0.00013698,2]
[331613211,1720582243931,-500.0,0.00013698,2]
[331613212,1720582243941,-676.18,0.00013698,2]
[331613213,1720582243951,-500.0,0.00013698,2]
[331613214,1720582243961,-674.58,0.00013698,2]
[331613215,1720582243971,-640.97310659,0.00013698,2]
[331613216,1720582243981,-2572.05,0.00013698,2]
[331613217,1720582243990,-500.0,0.00013698,2]
[331613218,1720582244001,-1000.61,0.00013698,2]
[331613219,1720582244010,-500.0,0.00013698,2]
[331613220,1720582244021,-1223.81883685,0.00013698,2]
[331613221,1720582244040,-524.41116315,0.00013698,2]
[331613222,1720582244052,-935.91523661,0.00013698,2]
[331613223,1720582244065,-729.38476339,0.00013698,2]
[331613224,1720582244075,-1630.96,0.00013698,2]
[331613225,1720582244085,-500.0,0.00013698,2]
[331613226,1720582244095,-500.0,0.00013698,2]
[331613227,1720582244105,-500.0,0.00013698,2]
[331613228,1720582244115,-500.0,0.00013698,2]
[331613229,1720582244125,-415.04974157,0.00013698,2]
[331613230,1720582244139,-84.95025843,0.00013698,2]
[331613231,1720582244149,-500.0,0.00013698,2]
[331613232,1720582244159,-578.21270157,0.00013698,2]
[331613233,1720582244171,-307.355,0.00013698,2]
[331613234,1720582244183,-288.795,0.00013698,2]
[331613235,1720582244266,-369.045089,0.00013263,2]
[331613236,1720582244276,-944.40729843,0.00013698,2]
[331613237,1720582244286,-373.71708672,0.00013698,2]
[331613238,1720582244298,-135.66291328,0.00013698,2]
[331613239,1720582244307,-937.55,0.00013698,2]
[331613240,1720582244317,-378.28708672,0.00013698,2]
[331613242,1720582245076,-322.33644573,0.00013598,2]
[331613243,1720582245086,-121.71291328,0.00013698,2]
[331613244,1720582245095,-642.94609232,0.00013698,2]
[331613245,1720582245556,-820.98390768,0.00013698,2]
[331613246,1720582245566,-232.82365866,0.00013698,2]
[331613250,1720582247483,-289.00076648,0.00013263,2]
[331613252,1720582247494,-471.84634134,0.00013698,2]
[331613253,1720582247503,-289.39972536,0.00013698,2]
[331613254,1720582247516,-210.60027464,0.00013698,2]
[331613255,1720582247526,-328.66842948,0.00013698,2]
[331613256,1720582247535,-760.66026883,0.00013698,2]
[331613257,1720582247664,-519.94092033,0.00013698,2]
[331613258,1720582247676,-509.83881084,0.00013698,2]
[331613259,1720582247686,-735.12,0.00013698,2]
[331613260,1720582247695,-1099.49,0.00013698,2]
[331613261,1720582247705,-1233.35118916,0.00013698,2]
[331613262,1720582247717,-852.18109769,0.00013698,2]
[331613263,1720582247729,-310.0765343,0.00013698,2]
[331613264,1720582247741,-29.64117885,0.00013698,2]
[331613265,1720582247750,-1031.58,0.00013698,2]
[331613266,1720582247760,-500.0,0.00013698,2]
[331613267,1720582247769,-838.5,0.00013698,2]
[331613268,1720582247779,-1448.5,0.00013698,2]
[331613269,1720582247788,-500.0,0.00013698,2]
[331613270,1720582247798,-329.87681079,0.00013698,2]
[331613271,1720582247808,-500.0,0.00013698,2]
[331613272,1720582247818,-500.0,0.00013698,2]
[331613273,1720582247828,-668.12,0.00013698,2]
[331613274,1720582247837,-1127.08,0.00013698,2]
[331613275,1720582247847,-500.0,0.00013698,2]
[331613276,1720582247856,-500.0,0.00013698,2]
[331613277,1720582247865,-1866.3,0.00013698,2]
[331613278,1720582247875,-500.0,0.00013698,2]
[331613279,1720582247884,-500.0,0.00013698,2]
[331613280,1720582247894,-720.28,0.00013698,2]
[331613281,1720582247903,-866.32,0.00013698,2]
[331613282,1720582247912,-677.59,0.00013698,2]
[331613283,1720582247921,-991.23,0.00013698,2]
[331613284,1720582247931,-3144.2,0.00013698,2]
[331613285,1720582247940,-649.25,0.00013698,2]
[331613286,1720582247949,-1594.37,0.00013698,2]
[331613287,1720582247959,-500.0,0.00013698,2]
[331613288,1720582247968,-500.0,0.00013698,2]
[331613289,1720582247977,-500.0,0.00013698,2]
[331613290,1720582247986,-1537.85,0.00013698,2]
[331613291,1720582247995,-769.63,0.00013698,2]
[331613292,1720582248004,-500.0,0.00013698,2]
[331613293,1720582248013,-500.0,0.00013698,2]
[331613294,1720582248023,-559.78,0.00013698,2]
[331613295,1720582248032,-500.0,0.00013698,2]
[331613296,1720582248042,-500.0,0.00013698,2]
[331613297,1720582248052,-500.0,0.00013698,2]
[331613298,1720582248062,-153.66627827,0.00013698,2]
[331613299,1720582248071,-500.0,0.00013698,2]
[331613300,1720582248080,-2009.43,0.00013698,2]
[331613301,1720582248089,-500.0,0.00013698,2]
[331613302,1720582248099,-684.3,0.00013698,2]
[331613303,1720582248108,-626.0717445,0.00013698,2]
[331613304,1720582248117,-1182.75,0.00013698,2]
[331613305,1720582248126,-500.0,0.00013698,2]
[331613306,1720582248135,-1191.56,0.00013698,2]
[331613307,1720582248145,-1234.5351084,0.00013698,2]
[331613308,1720582248158,-305.0,0.00013698,2]
[331613309,1720582248169,-407.7348916,0.00013698,2]
[331613310,1720582248180,-886.76,0.00013698,2]
[331613311,1720582248190,-1208.43,0.00013698,2]
[331613312,1720582248201,-436.67510837,0.00013698,2]
[331613313,1720582248213,-180.31489163,0.00013698,2]
[331613314,1720582248223,-500.0,0.00013698,2]
[331613315,1720582248232,-500.0,0.00013698,2]
[331613316,1720582248243,-1683.68510987,0.00013698,2]
[331613317,1720582249469,-721.4451556,0.00013698,2]
[331613318,1720582249517,-517.68,0.00013698,2]
[331613319,1720582249529,-1.53973453,0.00013698,2]
[331613320,1720582249539,-3366.08,0.00013698,2]
[331613321,1720582249549,-500.0,0.00013698,2]
[331613322,1720582249558,-2479.02,0.00013698,2]
[331613323,1720582249568,-500.0,0.00013698,2]
[331613324,1720582249577,-500.0,0.00013698,2]
[331613325,1720582249587,-500.0,0.00013698,2]
[331613326,1720582249596,-900.44,0.00013698,2]
[331613327,1720582249605,-500.0,0.00013698,2]
[331613328,1720582249615,-500.0,0.00013698,2]
[331613329,1720582249624,-500.0,0.00013698,2]
[331613330,1720582249633,-2258.42,0.00013698,2]
[331613331,1720582249644,-500.0,0.00013698,2]
[331613332,1720582249654,-565.91,0.00013698,2]
[331613333,1720582249663,-500.0,0.00013698,2]
[331613334,1720582249673,-3513.36,0.00013698,2]
[331613335,1720582249683,-736.48,0.00013698,2]
[331613336,1720582249692,-500.0,0.00013698,2]
[331613337,1720582249701,-500.0,0.00013698,2]
[331613338,1720582249710,-801.28,0.00013698,2]
[331613339,1720582249720,-954.56,0.00013698,2]
[331613340,1720582249729,-500.0,0.00013698,2]
[331613341,1720582249739,-500.0,0.00013698,2]
[331613342,1720582249748,-1594.62,0.00013698,2]
[331613343,1720582249757,-740.54,0.00013698,2]
[331613344,1720582249766,-871.65,0.00013698,2]
[331613345,1720582249776,-500.0,0.00013698,2]
[331613346,1720582249784,-813.19,0.00013698,2]
[331613347,1720582249794,-500.0,0.00013698,2]
[331613348,1720582249803,-2579.34,0.00013698,2]
[331613349,1720582249812,-613.74,0.00013698,2]
[331613350,1720582249822,-1971.03,0.00013698,2]
[331613351,1720582249831,-500.0,0.00013698,2]
[331613352,1720582249840,-500.0,0.00013698,2]
[331613353,1720582249849,-500.0,0.00013698,2]
[331613354,1720582249859,-500.0,0.00013698,2]
[331613355,1720582249868,-1831.77,0.00013698,2]
[331613356,1720582249877,-792.81,0.00013698,2]
[331613357,1720582249887,-506.99,0.00013698,2]
[331613358,1720582249897,-3803.34,0.00013698,2]
[331613359,1720582249907,-1025.8,0.00013698,2]
[331613360,1720582249916,-500.0,0.00013698,2]
[331613361,1720582249925,-500.0,0.00013698,2]
[331613362,1720582249935,-1297.19,0.00013698,2]
[331613363,1720582249945,-500.0,0.00013698,2]
[331613364,1720582249957,-500.0,0.00013698,2]
[331613365,1720582249966,-500.0,0.00013698,2]
[331613366,1720582249975,-500.0,0.00013698,2]
[331613367,1720582249984,-730.47,0.00013698,2]
[331613368,1720582249994,-1434.48,0.00013698,2]
[331613369,1720582250002,-1934.59,0.00013698,2]
[331613370,1720582250012,-500.0,0.00013698,2]
[331613371,1720582250021,-635.72,0.00013698,2]
[331613372,1720582250031,-500.0,0.00013698,2]
[331613373,1720582250040,-931.03,0.00013698,2]
[331613374,1720582250051,-627.49,0.00013698,2]
[331613375,1720582250060,-500.0,0.00013698,2]
[331613376,1720582250069,-500.0,0.00013698,2]
[331613377,1720582250079,-2510.79,0.00013698,2]
[331613378,1720582250088,-500.0,0.00013698,2]
[331613379,1720582250098,-500.0,0.00013698,2]
[331613380,1720582250107,-1163.55,0.00013698,2]
[331613381,1720582250117,-500.0,0.00013698,2]
[331613382,1720582250128,-3435.42,0.00013698,2]
[331613383,1720582250137,-2599.44,0.00013698,2]
[331613384,1720582250148,-500.0,0.00013698,2]
[331613385,1720582250158,-1017.48,0.00013698,2]
[331613386,1720582250167,-500.0,0.00013698,2]
[331613387,1720582250177,-515.87286161,0.00013698,2]
[331613388,1720582250186,-1264.67,0.00013698,2]
[331613389,1720582250196,-500.0,0.00013698,2]
[331613390,1720582250205,-570.39,0.00013698,2]
[331613391,1720582250216,-870.48,0.00013698,2]
[331613392,1720582250225,-500.0,0.00013698,2]
[331613393,1720582250235,-500.0,0.00013698,2]
[331613394,1720582250244,-500.0,0.00013698,2]
[331613395,1720582250254,-3880.76,0.00013698,2]
[331613396,1720582250263,-500.0,0.00013698,2]
[331613397,1720582250273,-500.0,0.00013698,2]
[331613398,1720582250282,-1217.42,0.00013698,2]
[331613399,1720582250292,-500.0,0.00013698,2]
[331613400,1720582250301,-604.47,0.00013698,2]
[331613401,1720582250310,-2609.28,0.00013698,2]
[331613402,1720582250320,-500.0,0.00013698,2]
[331613403,1720582250331,-787.52,0.00013698,2]
[331613404,1720582250342,-521.8,0.00013698,2]
[331613405,1720582250351,-500.0,0.00013698,2]
[331613406,1720582250361,-913.31,0.00013698,2]
[331613407,1720582250371,-1398.18,0.00013698,2]
[331613408,1720582250380,-500.0,0.00013698,2]
[331613409,1720582250392,-500.0,0.00013698,2]
[331613410,1720582250401,-500.0,0.00013698,2]
[331613411,1720582250411,-2694.43,0.00013698,2]
[331613412,1720582250420,-500.0,0.00013698,2]
[331613413,1720582250430,-500.0,0.00013698,2]
[331613414,1720582250440,-500.0,0.00013698,2]
[331613415,1720582250448,-500.0,0.00013698,2]
[331613416,1720582250457,-1597.56,0.00013698,2]
[331613417,1720582250467,-500.0,0.00013698,2]
[331613418,1720582250476,-912.2,0.00013698,2]
[331613419,1720582250485,-500.0,0.00013698,2]
[331613420,1720582250494,-1481.17,0.00013698,2]
[331613421,1720582250511,-2603.73,0.00013698,2]
[331613422,1720582250523,-185.93364106,0.00013698,2]
[331613423,1720582250532,-2625.56,0.00013698,2]
[331613424,1720582250541,-3833.44,0.00013698,2]
[331613425,1720582250550,-668.95,0.00013698,2]
[331613426,1720582250560,-500.0,0.00013698,2]
[331613427,1720582250569,-500.0,0.00013698,2]
[331613428,1720582250578,-500.0,0.00013698,2]
[331613429,1720582250588,-524.34853712,0.00013698,2]
[331613430,1720582250751,-1431.38632,0.00013698,2]
[331613431,1720582250762,-321.88078432,0.00013698,2]
[331613432,1720582250774,-943.36435856,0.00013698,2]
[331613433,1720582250783,-500.0,0.00013698,2]
[331613434,1720582250793,-500.0,0.00013698,2]
[331613435,1720582250802,-1182.13,0.00013698,2]
[331613436,1720582250811,-1135.59,0.00013698,2]
[331613437,1720582250821,-1411.3,0.00013698,2]
[331613438,1720582250831,-1453.69,0.00013698,2]
[331613439,1720582250840,-500.0,0.00013698,2]
[331613440,1720582250849,-500.0,0.00013698,2]
[331613441,1720582250859,-929.19,0.00013698,2]
[331613442,1720582250868,-194.54781982,0.00013698,2]
[331613443,1720582250877,-2358.23,0.00013698,2]
[331613444,1720582250886,-3094.74,0.00013698,2]
[331613445,1720582250896,-500.0,0.00013698,2]
[331613446,1720582250905,-836.77,0.00013698,2]
[331613447,1720582250915,-958.6,0.00013698,2]
[331613448,1720582250924,-500.0,0.00013698,2]
[331613449,1720582250933,-500.0,0.00013698,2]
[331613450,1720582250943,-500.0,0.00013698,2]
[331613451,1720582250952,-803.67,0.00013698,2]
[331613452,1720582250962,-500.0,0.00013698,2]
[331613453,1720582250972,-500.0,0.00013698,2]
[331613454,1720582250981,-796.07,0.00013698,2]
[331613455,1720582250990,-500.0,0.00013698,2]
[331613456,1720582251000,-500.0,0.00013698,2]
[331613457,1720582251009,-517.16,0.00013698,2]
[331613458,1720582251018,-500.0,0.00013698,2]
[331613459,1720582251028,-4981.91,0.00013698,2]
[331613460,1720582251038,-210.80454989,0.00013698,2]
[331613461,1720582251048,-500.0,0.00013698,2]
[331613462,1720582251058,-192.23327173,0.00013698,2]
[331613463,1720582251071,-307.76672827,0.00013698,2]
[331613464,1720582251081,-2058.26,0.00013698,2]
[331613465,1720582251090,-1285.49615459,0.00013698,2]
[331613466,1720582251102,-929.49487417,0.00013698,2]
[331613467,1720582251113,-90.35897124,0.00013698,2]
[331613468,1720582251123,-500.0,0.00013698,2]
[331613469,1720582251133,-863.00278876,0.00013698,2]
[331613470,1720582251203,-384.69721124,0.00013698,2]
[331613471,1720582251212,-57.30468229,0.00013698,2]
[331613472,1720582261965,189.89,0.00010959,2]
[331613473,1720582272482,158.24,0.00010959,2]
[331613474,1720582283003,791.25,0.00010959,2]
[331613475,1720582386303,286.68,0.00010874,2]
[331613477,1720582574818,3133.39776819,0.00011199,2]
[331613478,1720582583504,176.97837465,0.00011199,2]
[331613479,1720582681945,1147.05498735,0.00011199,2]
[331613480,1720582686879,2178.31016216,0.00011199,2]
[331613481,1720582688952,250.81389355,0.00011199,2]
[331613482,1720582693053,297.28970995,0.00011199,2]